[Event "Early-Titled-Tuesday-Blitz-December-26-2023"]
[Site "Chess.com"]
[Date "2023.12.26"]
[Round "6"]
[White "Yeritsyaan"]
[Black "ural58"]
[Result "0-1"]
[WhiteElo "2620"]
[BlackElo "2497"]
[TimeControl "180+1"]
[EndTime "9:08:18 PST"]
[Termination "ural58 won by resignation"]

1. Nf3 {[%clk 0:03:00.9]} 1... Nc6 {[%clk 0:02:51.3]} 2. c4 {[%clk 0:03:01.3]}
2... e5 {[%clk 0:02:50.7]} 3. Nc3 {[%clk 0:03:02]} 3... Bb4 {[%clk 0:02:50.1]}
4. e4 {[%clk 0:03:01.7]} 4... d6 {[%clk 0:02:47.9]} 5. d3 {[%clk 0:03:02.1]}
5... Bxc3+ {[%clk 0:02:46.7]} 6. bxc3 {[%clk 0:03:03]} 6... b6 {[%clk
0:02:45.1]} 7. Be2 {[%clk 0:03:03.5]} 7... Nge7 {[%clk 0:02:42.4]} 8. O-O {[%clk
0:03:04.2]} 8... h6 {[%clk 0:02:42.1]} 9. d4 {[%clk 0:03:02.5]} 9... O-O {[%clk
0:02:41.1]} 10. Be3 {[%clk 0:02:59.4]} 10... Ng6 {[%clk 0:02:40.4]} 11. c5
{[%clk 0:02:59.3]} 11... bxc5 {[%clk 0:02:30.4]} 12. dxc5 {[%clk 0:02:58.4]}
12... Nf4 {[%clk 0:02:15.8]} 13. Bb5 {[%clk 0:02:52.6]} 13... Ne7 {[%clk
0:01:59.8]} 14. Qd2 {[%clk 0:02:51.4]} 14... c6 {[%clk 0:01:54.9]} 15. cxd6
{[%clk 0:02:45.4]} 15... cxb5 {[%clk 0:01:54]} 16. dxe7 {[%clk 0:02:46.1]} 16...
Qxe7 {[%clk 0:01:54.2]} 17. Bxf4 {[%clk 0:02:43.6]} 17... exf4 {[%clk
0:01:54.1]} 18. Qxf4 {[%clk 0:02:44.5]} 18... Be6 {[%clk 0:01:51.6]} 19. Rfe1
{[%clk 0:02:44.1]} 19... Rfc8 {[%clk 0:01:50.2]} 20. Qe3 {[%clk 0:02:41.1]}
20... Qc5 {[%clk 0:01:47.2]} 21. Nd4 {[%clk 0:02:34.5]} 21... Bc4 {[%clk
0:01:28]} 22. Qg3 {[%clk 0:02:30.3]} 22... g6 {[%clk 0:01:20.3]} 23. e5 {[%clk
0:02:24.1]} 23... Re8 {[%clk 0:01:17.2]} 24. e6 {[%clk 0:02:05.7]} 24... Kh7
{[%clk 0:01:16.3]} 25. exf7 {[%clk 0:01:59.7]} 25... Bxf7 {[%clk 0:01:16.1]} 26.
h4 {[%clk 0:01:59.1]} 26... Rxe1+ {[%clk 0:01:06.3]} 27. Rxe1 {[%clk 0:02:00]}
27... Bxa2 {[%clk 0:01:06.3]} 28. Re5 {[%clk 0:01:52.3]} 28... Qd6 {[%clk
0:01:00.4]} 29. Qe3 {[%clk 0:01:45.5]} 29... Rf8 {[%clk 0:00:56.9]} 30. h5
{[%clk 0:01:44]} 30... gxh5 {[%clk 0:00:55.9]} 31. Nf5 {[%clk 0:01:39.9]} 31...
Qg6 {[%clk 0:00:49.1]} 32. Ne7 {[%clk 0:01:19.3]} 32... Qb1+ {[%clk 0:00:24.6]}
33. Kh2 {[%clk 0:01:18.2]} 33... Bc4 {[%clk 0:00:25.2]} 34. Rxh5 {[%clk
0:01:09.5]} 34... Rf6 {[%clk 0:00:25.4]} 35. Qxa7 {[%clk 0:00:29.7]} 35... Bf7
{[%clk 0:00:22.7]} 36. Nd5 {[%clk 0:00:23.6]} 36... Rf5 {[%clk 0:00:20.4]} 37.
Rxf5 {[%clk 0:00:19.9]} 37... Qxf5 {[%clk 0:00:19.8]} 38. Qd4 {[%clk 0:00:18.8]}
38... Bxd5 {[%clk 0:00:18.6]} 39. Qa7+ {[%clk 0:00:15]} 39... Bf7 {[%clk
0:00:18]} 40. f3 {[%clk 0:00:13.5]} 40... Qe5+ {[%clk 0:00:17.5]} 41. Kh1 {[%clk
0:00:13.2]} 41... Kg7 {[%clk 0:00:17.8]} 42. Qa5 {[%clk 0:00:09.9]} 42... Qc5
{[%clk 0:00:17]} 43. Qa1 {[%clk 0:00:08.4]} 43... Bc4 {[%clk 0:00:16.5]} 44. Qe1
{[%clk 0:00:08.1]} 44... Qd6 {[%clk 0:00:16.2]} 45. Qe3 {[%clk 0:00:07]} 45...
Qf6 {[%clk 0:00:15.9]} 46. Qa7+ {[%clk 0:00:06.8]} 46... Kg6 {[%clk 0:00:16.1]}
47. Qe3 {[%clk 0:00:07.4]} 47... Qh4+ {[%clk 0:00:15.7]} 48. Kg1 {[%clk
0:00:07]} 48... Qg5 {[%clk 0:00:16]} 49. Qb6+ {[%clk 0:00:06.8]} 49... Qf6
{[%clk 0:00:16.4]} 50. Qe3 {[%clk 0:00:07.1]} 50... h5 {[%clk 0:00:16.8]} 51.
Qe4+ {[%clk 0:00:07.5]} 51... Kh6 {[%clk 0:00:16.4]} 52. Qe3+ {[%clk 0:00:08]}
52... Qg5 {[%clk 0:00:16.3]} 53. Qb6+ {[%clk 0:00:08.8]} 53... Qg6 {[%clk
0:00:16.2]} 54. Qe3+ {[%clk 0:00:09.5]} 54... Kh7 {[%clk 0:00:16.6]} 55. Qe7+
{[%clk 0:00:09.4]} 55... Kg8 {[%clk 0:00:16.8]} 56. Qd8+ {[%clk 0:00:09]} 56...
Kg7 {[%clk 0:00:16]} 57. Qe7+ {[%clk 0:00:09.3]} 57... Qf7 {[%clk 0:00:15.7]}
58. Qe5+ {[%clk 0:00:09.8]} 58... Kh7 {[%clk 0:00:15.7]} 59. Qe4+ {[%clk
0:00:10]} 59... Kh6 {[%clk 0:00:15.9]} 60. Qe3+ {[%clk 0:00:09.8]} 60... Kg7
{[%clk 0:00:16.2]} 61. Qe5+ {[%clk 0:00:10.1]} 61... Kf8 {[%clk 0:00:16.6]} 62.
Qh8+ {[%clk 0:00:09.5]} 62... Ke7 {[%clk 0:00:16.9]} 63. Qe5+ {[%clk 0:00:09.9]}
63... Kd7 {[%clk 0:00:17.6]} 64. Qd4+ {[%clk 0:00:09.9]} 64... Kc6 {[%clk
0:00:17.9]} 65. Qe4+ {[%clk 0:00:09.6]} 65... Qd5 {[%clk 0:00:17.7]} 66. Qg6+
{[%clk 0:00:09.7]} 66... Kb7 {[%clk 0:00:17.5]} 67. Qg7+ {[%clk 0:00:10]} 67...
Ka6 {[%clk 0:00:17.7]} 68. Qf6+ {[%clk 0:00:10.2]} 68... Ka5 {[%clk 0:00:17.7]}
69. Qh8 {[%clk 0:00:10.5]} 69... Ka4 {[%clk 0:00:17.4]} 70. Qf6 {[%clk
0:00:05.8]} 70... Kb3 {[%clk 0:00:17.3]} 71. g4 {[%clk 0:00:06.1]} 71... hxg4
{[%clk 0:00:16.7]} 72. fxg4 {[%clk 0:00:07]} 72... Qd1+ {[%clk 0:00:16.3]} 73.
Kf2 {[%clk 0:00:06.5]} 73... Qxg4 {[%clk 0:00:15.7]} 74. Ke3 {[%clk 0:00:05.8]}
74... Qg3+ {[%clk 0:00:15.8]} 75. Kd2 {[%clk 0:00:05.8]} 75... Qd3+ {[%clk
0:00:15.9]} 76. Kc1 {[%clk 0:00:06.3]} 76... Qxc3+ {[%clk 0:00:16.5]} 77. Qxc3+
{[%clk 0:00:07]} 77... Kxc3 {[%clk 0:00:17.1]} 0-1

[Event "Early-Titled-Tuesday-Blitz-December-26-2023"]
[Site "Chess.com"]
[Date "2023.12.26"]
[Round "6"]
[White "tylityli"]
[Black "Kotlyar_K"]
[Result "1-0"]
[WhiteElo "2255"]
[BlackElo "2470"]
[TimeControl "180+1"]
[EndTime "9:08:33 PST"]
[Termination "tylityli won by resignation"]

1. d4 {[%clk 0:03:00.9]} 1... Nf6 {[%clk 0:02:59.7]} 2. c4 {[%clk 0:03:00.2]}
2... g6 {[%clk 0:02:59.9]} 3. Nc3 {[%clk 0:03:00.3]} 3... d5 {[%clk 0:02:59.6]}
4. cxd5 {[%clk 0:02:59.7]} 4... Nxd5 {[%clk 0:03:00.5]} 5. Bd2 {[%clk 0:03:00]}
5... Bg7 {[%clk 0:03:00.2]} 6. e4 {[%clk 0:02:59.5]} 6... Nxc3 {[%clk
0:02:59.9]} 7. Bxc3 {[%clk 0:02:58.7]} 7... O-O {[%clk 0:02:59.7]} 8. Qd2 {[%clk
0:02:51.8]} 8... Nd7 {[%clk 0:02:43.6]} 9. Nf3 {[%clk 0:02:48.1]} 9... b6 {[%clk
0:02:43.7]} 10. Bd3 {[%clk 0:02:43.2]} 10... Bb7 {[%clk 0:02:43.9]} 11. O-O
{[%clk 0:02:41.8]} 11... Rc8 {[%clk 0:02:42]} 12. Rad1 {[%clk 0:02:37.8]} 12...
Qe8 {[%clk 0:02:41.3]} 13. Rfe1 {[%clk 0:02:24.6]} 13... c5 {[%clk 0:02:40.3]}
14. d5 {[%clk 0:02:22.6]} 14... e5 {[%clk 0:02:25.1]} 15. Bb5 {[%clk 0:02:10.7]}
15... Rd8 {[%clk 0:02:23]} 16. a4 {[%clk 0:02:01.6]} 16... a6 {[%clk 0:02:14.4]}
17. Bc4 {[%clk 0:01:57.4]} 17... h6 {[%clk 0:02:07.2]} 18. Qc2 {[%clk
0:01:49.1]} 18... Kh7 {[%clk 0:02:04.9]} 19. Qe2 {[%clk 0:01:48.5]} 19... Nb8
{[%clk 0:01:59.2]} 20. Qc2 {[%clk 0:01:43.9]} 20... Rd6 {[%clk 0:01:56.4]} 21.
h3 {[%clk 0:01:42.6]} 21... Qe7 {[%clk 0:01:56.6]} 22. g4 {[%clk 0:01:34.3]}
22... Bc8 {[%clk 0:01:53.9]} 23. b4 {[%clk 0:01:22.6]} 23... Nd7 {[%clk
0:01:45.6]} 24. Kg2 {[%clk 0:01:15.2]} 24... Qd8 {[%clk 0:01:29.5]} 25. Bd3
{[%clk 0:01:06.7]} 25... Qc7 {[%clk 0:01:25]} 26. Qe2 {[%clk 0:01:04.6]} 26...
cxb4 {[%clk 0:01:14]} 27. Bxb4 {[%clk 0:01:03.5]} 27... Nc5 {[%clk 0:01:14.9]}
28. Rc1 {[%clk 0:01:01]} 28... Rfd8 {[%clk 0:00:58.3]} 29. Qe3 {[%clk
0:00:56.4]} 29... Qd7 {[%clk 0:00:51]} 30. Bxc5 {[%clk 0:00:44.4]} 30... bxc5
{[%clk 0:00:51.9]} 31. Qxc5 {[%clk 0:00:42.7]} 31... Qxa4 {[%clk 0:00:50.9]} 32.
Ra1 {[%clk 0:00:37.9]} 32... Qb3 {[%clk 0:00:50.8]} 33. Ra3 {[%clk 0:00:28.5]}
33... Qb6 {[%clk 0:00:31.8]} 34. Rc1 {[%clk 0:00:28]} 34... Qxc5 {[%clk
0:00:16.9]} 35. Rxc5 {[%clk 0:00:27.7]} 35... Kg8 {[%clk 0:00:15.4]} 36. Rca5
{[%clk 0:00:24.3]} 36... Rb6 {[%clk 0:00:12.7]} 37. Bxa6 {[%clk 0:00:22.2]}
37... Bxa6 {[%clk 0:00:13.1]} 38. Rxa6 {[%clk 0:00:22.5]} 38... Rb4 {[%clk
0:00:14]} 39. R3a4 {[%clk 0:00:21.6]} 39... Rb1 {[%clk 0:00:12.2]} 40. Ra8
{[%clk 0:00:20.5]} 40... Rxa8 {[%clk 0:00:11.6]} 41. Rxa8+ {[%clk 0:00:21.4]}
41... Kh7 {[%clk 0:00:12.1]} 42. Re8 {[%clk 0:00:19.6]} 42... f6 {[%clk
0:00:10.4]} 43. d6 {[%clk 0:00:16.4]} 43... Rd1 {[%clk 0:00:10.1]} 44. Rd8
{[%clk 0:00:14.2]} 44... g5 {[%clk 0:00:10.6]} 45. Rd7 {[%clk 0:00:11.1]} 45...
Kg6 {[%clk 0:00:10.7]} 46. h4 {[%clk 0:00:11]} 46... Kh7 {[%clk 0:00:05.4]} 47.
h5 {[%clk 0:00:10.2]} 47... Kg8 {[%clk 0:00:05.6]} 48. Nh2 {[%clk 0:00:10.1]}
48... Bf8 {[%clk 0:00:06]} 49. Nf1 {[%clk 0:00:06.9]} 49... Rxd6 {[%clk
0:00:06.6]} 50. Rxd6 {[%clk 0:00:06.9]} 50... Bxd6 {[%clk 0:00:07.5]} 51. Ne3
{[%clk 0:00:07.1]} 51... Kf7 {[%clk 0:00:08]} 52. Nf5 {[%clk 0:00:07.4]} 52...
Bf8 {[%clk 0:00:08.9]} 53. Kf3 {[%clk 0:00:07.3]} 53... Ke6 {[%clk 0:00:09.4]}
54. Ke3 {[%clk 0:00:07.5]} 54... Kd7 {[%clk 0:00:09.7]} 55. Kd3 {[%clk
0:00:07.8]} 55... Kc6 {[%clk 0:00:10.2]} 56. Kc4 {[%clk 0:00:08.2]} 56... Kc7
{[%clk 0:00:07.1]} 57. Kd5 {[%clk 0:00:07.9]} 57... Kd7 {[%clk 0:00:07.7]} 58.
f3 {[%clk 0:00:07.6]} 58... Ke8 {[%clk 0:00:02]} 59. Ke6 {[%clk 0:00:07.8]}
59... Kd8 {[%clk 0:00:02.3]} 60. Kxf6 {[%clk 0:00:07.9]} 60... Ke8 {[%clk
0:00:03.2]} 61. Kxe5 {[%clk 0:00:07.3]} 61... Kf7 {[%clk 0:00:04.1]} 62. Nd6+
{[%clk 0:00:06.8]} 62... Kg7 {[%clk 0:00:04]} 63. Nf5+ {[%clk 0:00:07.2]} 63...
Kf7 {[%clk 0:00:03.8]} 64. Kd5 {[%clk 0:00:07.5]} 64... Kf6 {[%clk 0:00:04.4]}
65. e5+ {[%clk 0:00:07.3]} 65... Kf7 {[%clk 0:00:05]} 66. Ke4 {[%clk 0:00:06.6]}
66... Ke6 {[%clk 0:00:05.1]} 67. Nd4+ {[%clk 0:00:06.6]} 67... Kf7 {[%clk
0:00:05.7]} 68. Kf5 {[%clk 0:00:06.5]} 68... Bc5 {[%clk 0:00:05.3]} 69. e6+
{[%clk 0:00:06.3]} 69... Ke8 {[%clk 0:00:04.3]} 70. Nc6 {[%clk 0:00:06.2]} 70...
Be3 {[%clk 0:00:03.7]} 71. Kg6 {[%clk 0:00:06.1]} 71... Bc5 {[%clk 0:00:02.1]}
72. Kxh6 {[%clk 0:00:06.1]} 72... Be7 {[%clk 0:00:03]} 73. Kg6 {[%clk
0:00:06.1]} 73... Bd6 {[%clk 0:00:02.8]} 74. Kxg5 {[%clk 0:00:05.7]} 74... Bg3
{[%clk 0:00:03.7]} 75. Kg6 {[%clk 0:00:05.9]} 75... Be1 {[%clk 0:00:04.6]} 76.
h6 {[%clk 0:00:06]} 76... Bc3 {[%clk 0:00:05.5]} 77. h7 {[%clk 0:00:06.2]} 77...
Bb2 {[%clk 0:00:06.4]} 78. f4 {[%clk 0:00:06.4]} 78... Bc3 {[%clk 0:00:06.3]}
79. f5 {[%clk 0:00:06.8]} 79... Bd4 {[%clk 0:00:07.2]} 80. Nxd4 {[%clk
0:00:05.6]} 1-0

[Event "Early-Titled-Tuesday-Blitz-December-26-2023"]
[Site "Chess.com"]
[Date "2023.12.26"]
[Round "6"]
[White "BardArtem"]
[Black "TitarovVasiliYouTube"]
[Result "0-1"]
[WhiteElo "2689"]
[BlackElo "2557"]
[TimeControl "180+1"]
[EndTime "9:09:30 PST"]
[Termination "TitarovVasiliYouTube won by resignation"]

1. e4 {[%clk 0:03:00.9]} 1... c5 {[%clk 0:02:58.7]} 2. Nf3 {[%clk 0:03:00.8]}
2... Nf6 {[%clk 0:02:59.4]} 3. Nc3 {[%clk 0:02:58.4]} 3... d5 {[%clk 0:02:59.5]}
4. exd5 {[%clk 0:02:52.2]} 4... Nxd5 {[%clk 0:03:00.4]} 5. Bb5+ {[%clk
0:02:52.3]} 5... Bd7 {[%clk 0:03:00.3]} 6. Ne5 {[%clk 0:02:52.8]} 6... Nf6
{[%clk 0:02:59.5]} 7. Nxd7 {[%clk 0:02:47.6]} 7... Nbxd7 {[%clk 0:02:59.1]} 8.
d4 {[%clk 0:02:47.8]} 8... e6 {[%clk 0:02:48.7]} 9. O-O {[%clk 0:02:47.1]} 9...
a6 {[%clk 0:02:46.6]} 10. Be2 {[%clk 0:02:46.6]} 10... Bd6 {[%clk 0:02:37.2]}
11. Bf3 {[%clk 0:02:41]} 11... Qc7 {[%clk 0:02:36.5]} 12. g3 {[%clk 0:01:55.4]}
12... O-O {[%clk 0:02:36.3]} 13. d5 {[%clk 0:01:48.7]} 13... e5 {[%clk
0:02:24.3]} 14. a4 {[%clk 0:01:43.7]} 14... Rfe8 {[%clk 0:02:12.4]} 15. Re1
{[%clk 0:01:39.4]} 15... c4 {[%clk 0:02:09.4]} 16. Bg5 {[%clk 0:01:34.6]} 16...
h6 {[%clk 0:01:53.9]} 17. Bxf6 {[%clk 0:01:27.6]} 17... Nxf6 {[%clk 0:01:53.6]}
18. Qe2 {[%clk 0:01:27.7]} 18... Bb4 {[%clk 0:01:42.3]} 19. Red1 {[%clk
0:01:18]} 19... Bxc3 {[%clk 0:01:37.6]} 20. bxc3 {[%clk 0:01:18.9]} 20... e4
{[%clk 0:01:26.1]} 21. Bg2 {[%clk 0:01:16.2]} 21... Rad8 {[%clk 0:01:25.6]} 22.
Rd4 {[%clk 0:00:56]} 22... Rxd5 {[%clk 0:01:25.4]} 23. Rxc4 {[%clk 0:00:50.7]}
23... Rc5 {[%clk 0:01:24.6]} 24. Bf1 {[%clk 0:00:36.7]} 24... Rc8 {[%clk
0:01:12.6]} 25. Rxc5 {[%clk 0:00:29.5]} 25... Qxc5 {[%clk 0:01:13.5]} 26. Rb1
{[%clk 0:00:30.1]} 26... Rc7 {[%clk 0:01:02.6]} 27. Qd2 {[%clk 0:00:26.9]} 27...
Rd7 {[%clk 0:00:51.9]} 28. Qe3 {[%clk 0:00:21.7]} 28... Qe5 {[%clk 0:00:49.3]}
29. h3 {[%clk 0:00:11.8]} 29... Nd5 {[%clk 0:00:33.7]} 30. Qd4 {[%clk
0:00:11.1]} 30... Qxd4 {[%clk 0:00:19.8]} 31. cxd4 {[%clk 0:00:12]} 31... Nc3
{[%clk 0:00:20.4]} 32. Rb3 {[%clk 0:00:10.8]} 32... Nxa4 {[%clk 0:00:18.5]} 33.
c3 {[%clk 0:00:11.2]} 33... b5 {[%clk 0:00:17.5]} 34. Bg2 {[%clk 0:00:08.7]}
34... Rc7 {[%clk 0:00:16.6]} 35. Bxe4 {[%clk 0:00:06.5]} 35... Rxc3 {[%clk
0:00:16.6]} 36. Rb1 {[%clk 0:00:06.6]} 36... Rc4 {[%clk 0:00:15.6]} 37. Bb7
{[%clk 0:00:04.9]} 37... Rxd4 {[%clk 0:00:12.5]} 38. Bxa6 {[%clk 0:00:05.5]}
38... b4 {[%clk 0:00:12.5]} 39. Kg2 {[%clk 0:00:06.2]} 39... Nc5 {[%clk
0:00:10]} 40. Be2 {[%clk 0:00:05.6]} 40... Rd2 {[%clk 0:00:08.4]} 41. Kf1 {[%clk
0:00:05.2]} 41... b3 {[%clk 0:00:07.9]} 42. Ke1 {[%clk 0:00:05.6]} 42... Rc2
{[%clk 0:00:05.5]} 43. Kd1 {[%clk 0:00:05.5]} 43... Kf8 {[%clk 0:00:02.6]} 44.
h4 {[%clk 0:00:03.5]} 44... Ra2 {[%clk 0:00:01.9]} 45. Rc1 {[%clk 0:00:02.9]}
45... Ne4 {[%clk 0:00:02]} 46. Rc8+ {[%clk 0:00:02.5]} 46... Ke7 {[%clk
0:00:02.2]} 47. f3 {[%clk 0:00:03.2]} 47... Nxg3 {[%clk 0:00:02.3]} 48. Bd3
{[%clk 0:00:03.9]} 48... Ra1+ {[%clk 0:00:02.2]} 49. Kd2 {[%clk 0:00:04.1]}
49... b2 {[%clk 0:00:02.8]} 50. Rb8 {[%clk 0:00:04.8]} 50... g6 {[%clk
0:00:02.3]} 51. Rxb2 {[%clk 0:00:04.3]} 51... Rh1 {[%clk 0:00:02.9]} 52. Ke3
{[%clk 0:00:04]} 52... Rxh4 {[%clk 0:00:02.4]} 53. Rb7+ {[%clk 0:00:04.1]} 53...
Kf6 {[%clk 0:00:02.5]} 54. Rb6+ {[%clk 0:00:04.4]} 54... Kg7 {[%clk 0:00:02.2]}
55. Kf2 {[%clk 0:00:03.6]} 55... Nh5 {[%clk 0:00:02.4]} 56. Rb1 {[%clk
0:00:03.1]} 56... Rd4 {[%clk 0:00:02.9]} 57. Bf1 {[%clk 0:00:04]} 57... Rd6
{[%clk 0:00:03.4]} 58. Ke3 {[%clk 0:00:04.7]} 58... Nf6 {[%clk 0:00:04]} 59. Be2
{[%clk 0:00:04.5]} 59... Nd5+ {[%clk 0:00:04.6]} 60. Kf2 {[%clk 0:00:04.9]}
60... Nf6 {[%clk 0:00:05.5]} 61. Bf1 {[%clk 0:00:04.9]} 61... h5 {[%clk
0:00:06.1]} 62. Ra1 {[%clk 0:00:05.5]} 62... Rd4 {[%clk 0:00:06.5]} 63. Ra5
{[%clk 0:00:05.5]} 63... Nd5 {[%clk 0:00:06.2]} 64. Ra8 {[%clk 0:00:05.1]} 64...
Nf6 {[%clk 0:00:06.3]} 65. Ra5 {[%clk 0:00:05.1]} 65... Rb4 {[%clk 0:00:06.8]}
66. Ra8 {[%clk 0:00:05.4]} 66... h4 {[%clk 0:00:07.1]} 67. Kg2 {[%clk
0:00:04.5]} 67... Nh5 {[%clk 0:00:07.4]} 68. Kh3 {[%clk 0:00:04]} 68... Rf4
{[%clk 0:00:06.1]} 69. Bg2 {[%clk 0:00:03.8]} 69... g5 {[%clk 0:00:06.2]} 70.
Ra5 {[%clk 0:00:04]} 70... Kg6 {[%clk 0:00:05.2]} 71. Kh2 {[%clk 0:00:03]} 71...
Rf5 {[%clk 0:00:04.6]} 72. Ra6+ {[%clk 0:00:03.5]} 72... Rf6 {[%clk 0:00:05]}
73. Ra8 {[%clk 0:00:04.2]} 73... Nf4 {[%clk 0:00:05.5]} 74. Bf1 {[%clk
0:00:04.6]} 74... Rd6 {[%clk 0:00:05.4]} 75. Kg1 {[%clk 0:00:03.5]} 75... Rd2
{[%clk 0:00:04.7]} 76. Rb8 {[%clk 0:00:02.8]} 76... h3 {[%clk 0:00:04.2]} 77.
Rb1 {[%clk 0:00:03]} 77... h2+ {[%clk 0:00:03.2]} 78. Kh1 {[%clk 0:00:03.6]}
78... Nh5 {[%clk 0:00:03.8]} 79. Bd3+ {[%clk 0:00:01.6]} 79... Rxd3 {[%clk
0:00:03.3]} 80. Rb6+ {[%clk 0:00:02.5]} 80... f6 {[%clk 0:00:03]} 81. Rb3 {[%clk
0:00:02.9]} 81... Rd1+ {[%clk 0:00:02]} 82. Kxh2 {[%clk 0:00:03.1]} 82... Nf4
{[%clk 0:00:02.5]} 83. Ra3 {[%clk 0:00:02.4]} 83... Rd5 {[%clk 0:00:03.4]} 84.
Kg3 {[%clk 0:00:02.9]} 84... Rd3 {[%clk 0:00:03.6]} 85. Ra8 {[%clk 0:00:03.3]}
85... Rd1 {[%clk 0:00:04]} 86. Kf2 {[%clk 0:00:03.2]} 86... Rd2+ {[%clk
0:00:04.4]} 87. Kf1 {[%clk 0:00:03.9]} 87... Rd5 {[%clk 0:00:04.1]} 88. Kf2
{[%clk 0:00:03.6]} 88... Re5 {[%clk 0:00:05]} 89. Rg8+ {[%clk 0:00:03.9]} 89...
Kf5 {[%clk 0:00:05.9]} 90. Ra8 {[%clk 0:00:04.7]} 90... Re6 {[%clk 0:00:06.4]}
91. Ra5+ {[%clk 0:00:05]} 91... Re5 {[%clk 0:00:07.3]} 92. Ra8 {[%clk
0:00:05.9]} 92... Re2+ {[%clk 0:00:07]} 93. Kf1 {[%clk 0:00:06.2]} 93... Rb2
{[%clk 0:00:06.9]} 94. Ra5+ {[%clk 0:00:06.2]} 94... Kg6 {[%clk 0:00:07.2]} 95.
Ra8 {[%clk 0:00:07.1]} 95... Nh5 {[%clk 0:00:07.2]} 96. Kg1 {[%clk 0:00:06.8]}
96... Kf5 {[%clk 0:00:07.5]} 97. Ra4 {[%clk 0:00:06.3]} 97... Ng3 {[%clk
0:00:07]} 98. Rf4+ {[%clk 0:00:06.6]} 98... Kg6 {[%clk 0:00:06.4]} 99. Rxf6+
{[%clk 0:00:07]} 99... Kxf6 {[%clk 0:00:06.5]} 0-1